bitfinex/quotes_ETHUSD_20251214
["timestamp","ask_amount","ask_price","bid_price","bid_amount"]
[1765718928771,0.001,3092.9,3092.8,4.61122008]
[1765718933912,0.001,3092.9,3092.8,5.19169537]
[1765718934217,0.001,3092.9,3092.8,5.32107758]
[1765718934626,0.001,3092.9,3092.8,35.41736567]
[1765718935295,0.001,3092.9,3092.8,35.28798346]
[1765718935497,0.001,3092.9,3092.8,35.41735395]
[1765718935896,0.001,3092.9,3092.8,35.32106586]
[1765718936127,0.001,3092.9,3092.8,35.83406586]
[1765718936299,0.001,3092.9,3092.8,35.70469537]
[1765718936501,0.001,3092.9,3092.8,36.16354468]
[1765718936828,0.001,3092.9,3092.8,36.5654553]
[1765718937033,0.001,3092.9,3092.8,35.70469537]
[1765718937337,0.001,3092.9,3092.8,36.5654553]
[1765718937495,0.001,3092.9,3092.8,36.16354468]
[1765718939114,0.001,3092.9,3092.8,36.5654553]
[1765718939643,0.001,3093.3,3093.2,30.405504]
[1765718939795,0.001,3093.3,3093.2,35.8276286]
[1765718939998,0.001,3093.5,3093.4,33.810504]
[1765718940198,0.001,3093.5,3093.4,35.3146286]
[1765718940426,0.001,3093.5,3093.4,35.7662286]
[1765718940695,0.001,3093.5,3093.4,32.49055559]
[1765718941833,0.001,3093.5,3093.4,32.54370628]
[1765718942140,0.001,3093.5,3093.4,35.77639523]
[1765718942343,0.001,3093.5,3093.4,36.63715516]
[1765718942704,0.001,3093.5,3093.4,5.77639523]
[1765718942904,0.001,3093.5,3093.4,37.01024315]
[1765718943531,0.001,3093.5,3093.4,36.88091616]
[1765718945407,0.001,3093.5,3093.4,37.01025779]
[1765718947425,0.4663,3093.5,3093.4,4.46653687]
[1765718947624,0.7455,3093.5,3092.8,0.002]
[1765718947824,0.2802,3093.5,3093.3,3.23273304]
[1765718948132,0.4635,3093.4,3093.2,3.23285447]
[1765718948320,0.2811,3093.4,3093.3,0.917504]
[1765718948524,0.001,3093.5,3093.3,4.15029745]
[1765718948731,0.2618,3093.4,3093.3,0.917504]
[1765718948913,0.2618,3093.4,3093.3,0.512]
[1765718949343,0.2618,3093.4,3093.3,0.917504]
[1765718949744,0.2618,3093.4,3093.3,0.512]
[1765718950125,0.2618,3093.4,3093.3,0.917504]
[1765718950329,0.2618,3093.4,3093.3,4.56533422]
[1765718950534,0.7425,3093.4,3093.3,0.917504]
[1765718950827,0.7425,3093.4,3093.3,0.405504]
[1765718951029,0.7425,3093.4,3092.8,0.58247529]
[1765718951030,0.7435,3093.4,3092.8,0.002]
[1765718951233,0.4653,3092.9,3092.8,0.002]
[1765718951416,0.6511,3092.9,3092.8,0.002]
[1765718951621,0.9419,3092.9,3092.8,0.514]
[1765718952960,4.17511154,3092.9,3092.8,0.514]
[1765718954038,0.9419,3092.9,3092.8,0.514]
[1765718955248,4.17511154,3092.9,3092.8,0.514]
[1765718956151,0.9419,3092.9,3092.8,0.514]
[1765718958943,0.6511,3092.9,3092.8,0.514]
[1765718959470,0.9419,3092.9,3092.8,0.514]
[1765718962670,3.71662579,3093.4,3092.8,0.9788]
[1765718962864,0.4829,3093.3,3092.8,0.9788]
[1765718963364,0.2733,3092.9,3092.8,0.919504]
[1765718964871,0.4591,3092.9,3092.8,0.919504]
[1765718965050,0.9399,3092.9,3092.8,0.919504]
[1765718967054,0.2733,3092.9,3092.8,0.919504]
[1765718967677,0.1903,3093.1,3092.8,1.33480548]
[1765718967883,3.71943052,3093.3,3092.8,1.377704]
[1765718968183,6.95226104,3093.3,3092.8,1.377704]
[1765718968355,0.4866,3093.2,3092.8,0.919504]
[1765718969484,3.7195548,3093.2,3092.8,0.919504]
[1765718970585,0.4866,3093.2,3092.8,0.919504]
[1765718971157,0.4876,3093.4,3092.8,5.11520224]
[1765718971359,0.4876,3093.4,3092.8,1.38453597]
[1765718971585,0.4876,3093.4,3092.8,0.919504]
[1765718973293,0.58047529,3093.2,3092.8,0.919504]
[1765718973794,0.4866,3093.2,3092.8,0.919504]
[1765718974585,0.2652,3092.9,3092.8,0.919504]
[1765718974789,0.4555,3092.9,3092.8,0.515]
[1765718974990,0.9399,3092.9,3092.8,0.515]
[1765718975390,4.17311154,3092.9,3092.8,0.515]
[1765718976097,0.9399,3092.9,3092.8,0.515]
[1765718977772,0.2652,3092.9,3092.8,0.515]
[1765718978196,0.2652,3092.9,3092.8,0.002]
[1765718978402,0.2652,3092.9,3092.8,0.515]
[1765718978803,0.4844,3093.1,3092.8,0.515]
[1765718978983,0.2674,3092.9,3092.8,0.002]
[1765718979182,0.2674,3092.9,3092.8,0.515]
[1765718979375,0.7496,3092.9,3092.8,0.515]
[1765718979579,0.2674,3092.9,3092.8,0.515]
[1765718983407,0.7496,3092.9,3092.8,0.515]
[1765718984308,0.7496,3092.9,3092.8,0.514]
[1765718985898,4.39393979,3093.2,3092.8,1.34695251]
[1765718986201,0.30082236,3093.1,3092.8,0.9722]
[1765718986404,0.30082236,3093.0,3092.8,0.9722]
[1765718986589,4.39393979,3093.2,3092.8,0.9722]
[1765718986590,0.4866,3093.1,3092.8,0.9722]
[1765718986789,0.30082144,3093.0,3092.8,0.514]
[1765718986996,0.4866,3093.1,3092.8,0.514]
[1765718987192,4.39393979,3093.2,3092.9,0.4974]
[1765718987193,0.97072142,3093.2,3092.9,0.4974]
[1765718987387,0.001,3093.3,3093.1,0.4582]
[1765718987590,0.30081653,3093.2,3093.1,0.4582]
[1765718987914,0.56601653,3093.2,3093.1,0.512]
[1765718988512,0.2652,3093.2,3093.1,0.512]
[1765718989411,0.001,3093.3,3093.1,4.20320248]
[1765718989614,0.001,3093.3,3093.1,4.94684299]
[1765718989815,0.001,3093.3,3093.1,1.71384051]
[1765718991688,0.001,3093.3,3093.2,0.4582]
[1765718993308,0.001,3093.3,3093.2,0.9556]
[1765718993690,0.001,3093.3,3093.2,0.4582]
[1765718993892,0.001,3093.3,3092.8,0.002]
[1765718993893,1.05118107,3093.3,3092.8,0.002]
[1765718994191,3.68421154,3092.9,3092.8,0.002]
[1765718994390,4.67647927,3092.9,3092.8,0.002]
[1765718994618,5.16717927,3092.9,3092.8,0.002]
[1765718994990,5.67917927,3092.9,3092.8,0.002]
[1765719000915,4.98744757,3092.9,3092.8,0.002]
[1765719001320,1.75423603,3092.9,3092.8,0.002]
[1765719001624,1.26353603,3092.9,3092.8,0.002]
[1765719002699,0.4907,3093.2,3092.8,0.9651]
[1765719002924,0.4628,3092.9,3092.8,0.514]
[1765719003126,0.2939,3093.1,3092.8,0.514]
[1765719003440,0.97072456,3093.2,3093.0,0.4511]
[1765719003825,0.001,3093.3,3093.1,0.4511]
[1765719004023,0.30020866,3093.2,3093.1,0.4511]
[1765719004333,0.58060866,3093.2,3092.9,0.4771]
[1765719004648,0.2804,3093.2,3092.9,0.4771]
[1765719005131,3.74781838,3093.3,3092.9,0.4771]
[1765719005334,0.3002012,3093.2,3092.9,0.89954415]
[1765719005507,3.74781235,3093.3,3092.9,0.89954415]
[1765719005703,0.3002115,3093.2,3092.9,0.42244415]
[1765719005903,4.22421235,3093.3,3092.9,0.42244415]
[1765719006116,0.30021145,3093.2,3092.9,0.42244415]
[1765719006334,4.22421235,3093.3,3092.9,0.42244415]
[1765719006538,0.30020368,3093.2,3092.8,0.514]
[1765719006741,4.22421235,3093.3,3092.8,0.514]
[1765719007043,0.30019413,3093.2,3092.8,0.514]
[1765719007242,4.22421235,3093.3,3092.8,0.514]
[1765719007417,0.30019241,3093.2,3092.8,0.514]
[1765719007732,4.22421235,3093.3,3092.9,0.42244752]
[1765719007931,0.30019209,3093.2,3092.8,0.514]
[1765719008109,0.4764,3093.2,3092.8,0.514]
[1765719009130,0.515,3093.3,3092.8,3.74729064]
[1765719009306,0.30019482,3093.2,3092.9,0.4791]
[1765719009508,0.9914,3093.3,3092.9,0.002]
[1765719009828,0.30018869,3093.2,3092.9,0.002]
[1765719010029,0.9914,3093.3,3092.9,0.42463906]
[1765719010331,0.3001888,3093.2,3092.9,0.42463906]
[1765719010635,0.9914,3093.3,3092.9,0.42463906]
[1765719011109,0.4764,3093.2,3092.9,0.42463906]
[1765719011838,0.2804,3093.0,3092.9,0.002]
[1765719013350,1.72547117,3093.0,3092.9,0.002]
[1765719013508,5.25867421,3093.0,3092.9,0.002]
[1765719013940,2.0255672,3093.0,3092.9,0.002]
[1765719015735,5.25867421,3093.0,3092.9,0.002]
[1765719016050,5.25858938,3093.0,3092.9,0.002]
[1765719016440,2.02548237,3093.0,3092.9,0.002]
[1765719017767,5.25858938,3093.0,3092.9,0.002]
[1765719018260,5.25858925,3093.0,3092.9,0.002]
[1765719018565,1.55108224,3093.0,3092.9,0.002]
[1765719020874,1.27068224,3093.0,3092.9,0.4531]
[1765719021370,0.97067117,3093.0,3092.9,0.9302]
[1765719021874,0.97067117,3093.0,3092.9,4.16341154]
[1765719022177,0.97067117,3093.0,3092.9,4.95448284]
[1765719024382,0.001,3093.3,3092.9,8.18769438]
[1765719024587,0.001,3093.3,3093.2,0.4511]
[1765719024772,0.001,3093.3,3093.2,1.153]
[1765719024979,0.001,3093.3,3093.2,1.6301]
[1765719025165,0.001,3093.3,3093.2,1.79311]
[1765719026375,0.001,3093.3,3093.2,5.02600796]
[1765719026579,0.001,3093.3,3093.2,6.01198725]
[1765719027574,0.001,3093.3,3093.2,36.01198725]
[1765719027779,0.001,3093.3,3093.2,39.54633515]
[1765719027976,0.001,3093.3,3093.2,36.14133515]
[1765719028177,0.001,3093.4,3093.3,40.98597929]
[1765719028472,0.001,3093.4,3093.3,37.17585359]
[1765719029489,0.001,3093.4,3093.3,7.27214168]
[1765719029700,0.001,3093.4,3093.3,37.27214168]
[1765719031710,0.001,3093.4,3093.3,47.27214168]
[1765719032028,0.001,3093.4,3093.3,37.27214168]
[1765719034630,0.001,3093.4,3093.3,47.48214168]
[1765719037102,0.001,3093.4,3093.3,47.61147578]
[1765719037296,0.001,3093.4,3093.3,47.9883864]
[1765719037821,0.001,3093.4,3093.3,47.61147578]
[1765719038023,0.001,3093.4,3093.3,51.01647578]
[1765719038418,0.001,3093.4,3093.3,51.3933864]
[1765719038731,0.001,3093.4,3093.3,51.74510238]
[1765719039224,0.001,3093.5,3093.4,34.76788991]
[1765719039428,0.001,3093.5,3093.4,36.50606121]
[1765719039647,0.001,3093.9,3093.7,0.98597929]
[1765719039808,0.001,3093.9,3093.8,46.052678]
[1765719040004,0.001,3093.9,3093.8,46.3182053]
[1765719040340,1e-08,3094.7,3094.6,1.067804]
[1765719040639,1e-08,3094.7,3094.6,33.08815969]
[1765719040804,1e-08,3094.7,3094.6,36.44887443]
[1765719041212,1e-08,3094.7,3094.6,35.93687443]
[1765719041430,1e-08,3094.7,3094.6,36.44887443]
[1765719043936,0.25590001,3094.7,3094.6,0.57655974]
[1765719044147,0.74060001,3094.7,3094.6,0.512]
[1765719044509,0.74060001,3094.7,3093.7,0.25590001]
[1765719044709,0.0048,3094.5,3093.8,6.97654198]
[1765719044917,0.0048,3094.5,3094.1,0.58047529]
[1765719045115,0.487,3094.4,3094.2,0.512]
[1765719045350,0.487,3094.5,3094.2,0.94445373]
[1765719045652,1e-08,3094.7,3094.2,0.94445373]
[1765719045653,0.2559,3094.3,3094.2,1.34995773]
[1765719045814,0.7406,3094.3,3094.2,0.94445373]
[1765719046010,0.7406,3094.3,3094.2,0.512]
[1765719046243,0.7406,3094.3,3094.2,0.917504]
[1765719046423,0.7406,3094.3,3094.2,0.512]
[1765719046750,0.7406,3094.3,3093.8,3.23225561]
[1765719047069,6.46266927,3094.7,3094.1,0.512]
[1765719047070,0.487,3094.2,3094.1,0.512]
[1765719047427,0.9262,3094.2,3094.1,0.512]
[1765719049431,1.89643481,3094.2,3094.1,0.512]
[1765719050832,1.70243481,3094.2,3094.1,0.512]
[1765719051041,0.4392,3094.2,3094.1,4.72993688]
[1765719051241,0.4392,3094.2,3094.1,5.52613747]
[1765719051449,0.7322,3094.2,3094.1,2.29417988]
[1765719051627,0.7332,3094.2,3094.1,1.09247529]
[1765719051831,7.19690628,3094.2,3093.3,0.002]
[1765719052037,0.4629,3093.4,3093.3,0.002]
[1765719052260,0.6584,3093.4,3093.3,0.514]
[1765719052573,0.928,3093.4,3093.3,0.514]
[1765719053070,4.16068895,3093.4,3093.3,0.514]
[1765719053234,5.41401573,3093.4,3093.3,0.514]
[1765719054026,5.41401573,3093.4,3093.3,0.002]
[1765719058175,6.29215013,3093.4,3093.3,0.002]
[1765719061178,5.41401573,3093.4,3093.3,0.002]
[1765719065865,4.67468895,3093.4,3093.3,0.002]
[1765719066077,1.442,3093.4,3093.3,0.002]
[1765719067496,4.67468895,3093.4,3093.3,0.002]
[1765719068208,4.71509756,3093.4,3093.3,0.002]
[1765719068668,4.67468895,3093.4,3093.3,0.002]
[1765719068873,5.52623595,3093.4,3093.3,0.002]
[1765719070203,6.14711985,3093.4,3093.3,0.002]
[1765719071989,6.44388296,3093.4,3093.3,0.002]
[1765719072192,6.10671124,3093.4,3093.3,0.002]
[1765719072499,6.44418876,3093.4,3093.3,0.002]
[1765719072699,6.40378015,3093.4,3093.3,0.002]
[1765719073888,12.89378015,3093.4,3093.3,0.002]
[1765719076702,13.40578015,3093.4,3093.3,0.002]
[1765719078304,12.89378015,3093.4,3093.3,0.002]
[1765719078611,13.40578015,3093.4,3093.3,0.002]
[1765719078814,11.46175786,3093.4,3093.3,0.002]
[1765719079128,3.23250791,3093.6,3093.3,0.4733]
[1765719079287,0.29818102,3093.5,3093.3,0.4733]
[1765719079491,0.29818102,3093.5,3093.3,0.002]
[1765719079693,0.29818102,3093.5,3093.4,0.4713]
[1765719080914,3.53076547,3093.5,3093.4,0.4713]
[1765719082697,0.29818102,3093.5,3093.3,0.002]
[1765719082900,3.23249482,3093.6,3093.4,0.4713]
[1765719083102,6.46433304,3093.9,3093.5,0.4713]
[1765719083307,0.29921721,3093.8,3093.5,0.4713]
[1765719083498,0.29921721,3093.7,3093.5,0.4713]
[1765719083814,0.29921721,3093.6,3093.3,6.46756223]
[1765719084000,0.001,3094.2,3094.1,0.4713]
[1765719084319,3.53218409,3094.2,3093.4,1.12775622]
[1765719084494,0.29932231,3094.1,3093.5,0.481]
[1765719084702,0.29932231,3094.0,3093.5,0.481]
[1765719084901,0.29932231,3093.9,3093.4,0.64675622]
[1765719085222,0.24932231,3093.8,3093.4,0.64675622]
[1765719085390,3.23223647,3093.9,3093.5,0.481]
[1765719085590,3.41453647,3093.9,3093.4,0.64675622]
[1765719085923,3.90613647,3093.9,3093.4,0.64675622]
[1765719086220,3.90613647,3093.9,3093.3,0.002]
[1765719086221,0.4737,3093.8,3093.3,0.002]
[1765719087004,0.4737,3093.8,3093.4,0.002]
[1765719087319,3.70600013,3093.8,3093.4,0.002]
[1765719087618,0.2719,3093.5,3093.4,0.002]
[1765719088010,0.1823,3093.9,3093.4,0.4937]
[1765719088011,3.41449437,3093.9,3093.4,0.4937]
[1765719088318,3.90689437,3093.9,3093.4,0.4937]
[1765719088808,3.23209732,3094.0,3093.4,0.4937]
[1765719089012,3.23209732,3094.0,3093.4,0.9917]
[1765719089206,6.46419464,3094.0,3093.4,0.9917]
[1765719089410,6.95659464,3094.0,3093.4,0.4937]
[1765719090420,0.4706,3093.5,3093.4,0.002]
[1765719091319,0.2631,3093.7,3093.4,0.002]
[1765719091525,6.95659464,3094.0,3093.4,0.4937]
[1765719092503,6.95659464,3094.0,3093.4,0.9917]
[1765719093117,3.23209732,3094.0,3093.4,3.72629168]
[1765719093333,3.23209732,3094.0,3093.5,0.92062917]
[1765719093520,0.001,3094.2,3093.5,0.92062917]
[1765719093823,0.4934,3094.2,3093.5,0.42262917]
[1765719093990,0.4934,3094.2,3093.4,0.002]
[1765719094928,0.2415,3093.5,3093.4,0.002]
[1765719095324,0.1943,3093.8,3093.4,0.4937]
[1765719095837,3.23237547,3093.7,3093.4,0.4937]
[1765719097121,0.4924,3094.1,3093.4,0.4937]
[1765719097321,3.53087154,3094.0,3093.6,0.4917]
[1765719097523,0.29877002,3093.9,3093.6,0.4917]
[1765719097702,3.23227099,3093.8,3093.6,0.4917]
[1765719100028,0.7314,3093.7,3093.4,0.002]
[1765719100256,0.0049,3093.5,3093.4,0.002]
[1765719100729,0.4973,3093.5,3093.4,0.002]
[1765719101129,0.8362576,3093.5,3093.4,0.002]
[1765719102130,4.06884205,3093.5,3093.4,0.002]
[1765719102358,5.76352583,3093.5,3093.4,0.002]
[1765719102859,6.16902983,3093.5,3093.4,0.002]
[1765719106560,6.27552583,3093.5,3093.4,0.002]
[1765719107883,6.68102983,3093.5,3093.4,0.002]
[1765719108090,6.64062253,3093.5,3093.4,0.002]
[1765719109968,6.77008514,3093.5,3093.4,0.002]
[1765719110299,13.26008514,3093.5,3093.4,0.002]
[1765719118715,1.71577929,3093.4,3093.3,1e-08]
[1765719119008,10.42176994,3093.4,3093.3,1e-08]
[1765719119213,10.38136133,3093.4,3093.3,1e-08]
[1765719119388,10.51084867,3093.4,3093.3,1e-08]
[1765719119605,13.74353762,3093.4,3093.3,1e-08]
[1765719123333,13.74306566,3093.4,3093.3,1e-08]
[1765719125984,13.74306566,3093.4,3092.8,0.002]
[1765719125985,0.679404,3092.1,3092.0,1e-08]
[1765719126246,1.48948234,3092.1,3092.0,1e-08]
[1765719126544,5.23545599,3092.1,3092.0,1e-08]
[1765719126838,5.94547229,3092.1,3092.0,1e-08]
[1765719127044,6.86341342,3092.1,3092.0,1e-08]
[1765719127245,5.83948782,3092.1,3092.0,1e-08]
[1765719127547,6.39191342,3092.1,3092.0,1e-08]
[1765719127748,6.35148782,3092.1,3092.0,1e-08]
[1765719128117,5.83948782,3092.1,3092.0,1e-08]
[1765719128321,6.35148782,3092.1,3092.0,1e-08]
[1765719128721,5.83948782,3092.1,3092.0,1e-08]
[1765719128942,6.35148782,3092.1,3092.0,1e-08]
[1765719130666,3.53212639,3092.1,3092.0,0.96100001]
[1765719133475,3.53212639,3092.1,3092.0,0.49810001]
[1765719134054,4.36710168,3092.1,3092.0,1e-08]
[1765719134254,5.39642729,3092.1,3092.0,1e-08]
[1765719134760,5.80193129,3092.1,3092.0,1e-08]
[1765719134939,7.08974084,3092.1,3092.0,1e-08]
[1765719135142,7.04931524,3092.1,3092.0,1e-08]
[1765719140770,7.05031524,3092.1,3092.0,1e-08]
[1765719141298,6.55951524,3092.1,3092.0,1e-08]
[1765719141794,7.05031524,3092.1,3092.0,1e-08]
[1765719144796,0.98597929,3092.0,3091.6,0.002]
[1765719145098,0.68829209,3091.7,3091.6,0.002]
[1765719145292,1.53880126,3091.7,3091.6,0.002]
[1765719145488,2.03870126,3091.7,3091.6,0.002]
[1765719145672,0.90636643,3091.7,3091.6,0.4535]
[1765719145875,0.90636643,3091.7,3091.6,0.9395]
[1765719146104,4.27036636,3091.7,3091.6,0.9395]
[1765719146303,5.2984593,3091.7,3091.6,0.9395]
[1765719147098,5.2984593,3091.7,3091.6,0.4535]
[1765719147801,5.5195593,3091.7,3091.6,0.002]
[1765719148300,5.2984593,3091.7,3091.6,0.4824]
[1765719149018,4.7864593,3091.7,3091.6,0.4824]
[1765719149184,3.53254481,3091.7,3091.6,0.9398]
[1765719150080,0.29807834,3091.7,3091.6,0.9398]
[1765719151506,3.53254481,3091.7,3091.6,0.9398]
[1765719152095,0.001,3092.1,3091.6,1.4518]
[1765719152324,0.001,3092.1,3092.0,3.71455265]
[1765719152617,1.23902827,3093.3,3092.0,11.59218851]
[1765719152792,6.46554198,3093.8,3092.0,11.59218851]
[1765719152793,0.29922827,3093.2,3092.1,10.862904]
[1765719152993,0.29922827,3093.3,3092.1,10.862904]
[1765719153230,0.29922827,3093.7,3093.3,0.6705]
[1765719153521,0.29922827,3093.6,3093.3,0.6705]
[1765719153717,3.23327099,3093.8,3093.3,1.1279]
[1765719153718,0.29922827,3093.7,3093.3,1.1279]
[1765719153921,0.29922827,3093.6,3093.3,1.1279]
[1765719154120,6.46554198,3093.8,3093.3,1.1279]
[1765719154121,0.29922827,3093.5,3093.3,1.1279]
[1765719154295,6.4649599,3093.6,3093.3,0.6705]
[1765719154617,0.29922827,3093.5,3093.3,1.1279]
[1765719154823,0.29922827,3093.5,3093.3,0.6705]
[1765719155010,0.29922827,3093.5,3093.3,0.4804]
[1765719155011,0.67751882,3093.4,3093.3,0.4804]
[1765719155216,0.97674709,3093.4,3093.3,0.4804]
[1765719155813,1.72044709,3093.4,3092.7,0.4574]
[1765719156060,0.29922827,3093.3,3092.7,0.4574]
[1765719156212,6.46579592,3093.2,3092.7,0.4574]
[1765719156416,0.29922827,3093.1,3092.7,0.4574]
[1765719158308,6.46621402,3093.0,3092.7,0.4574]
[1765719159130,3.23310701,3093.0,3092.9,0.4804]
[1765719159508,6.46621402,3093.0,3092.4,0.4574]
[1765719159742,9.69932103,3093.0,3092.4,0.4574]
[1765719160457,4.31228228,3093.0,3092.4,0.4574]
[1765719160882,1.07917527,3093.0,3092.4,0.4574]
[1765719161323,0.1987,3092.9,3092.0,0.514]
[1765719161509,0.99413896,3092.9,3092.0,0.4594]
[1765719161707,0.6959,3092.9,3092.0,0.4594]
[1765719161938,0.28685506,3092.8,3092.0,0.4594]
[1765719162340,0.58505938,3092.8,3092.0,0.4594]
[1765719162548,9.70026189,3092.7,3092.0,0.4594]
[1765719162921,12.93368252,3092.7,3092.0,0.4594]
[1765719163431,13.39308252,3092.7,3092.0,0.4594]
[1765719163637,1.36799376,3092.6,3092.0,0.4594]
[1765719163831,1.94846905,3092.6,3092.0,0.4594]
[1765719164217,0.29820499,3092.5,3092.0,0.4594]
[1765719164540,6.46767778,3092.3,3092.0,0.002]
[1765719165321,0.04042429,3092.2,3092.0,0.002]
[1765719165521,0.65081021,3092.1,3092.0,0.002]
[1765719165736,0.89971021,3092.1,3092.0,0.002]
[1765719165936,1.69268046,3092.1,3092.0,0.002]
[1765719166135,1.82219253,3092.1,3092.0,0.002]
[1765719166443,2.22769653,3092.1,3092.0,0.002]
[1765719166636,6.13850796,3092.1,3092.0,0.002]
[1765719167625,0.0049,3091.6,3091.3,0.002]
[1765719167826,0.244,3091.4,3091.3,0.002]
[1765719168234,0.54217025,3091.4,3091.3,0.002]
[1765719168737,4.35742589,3091.4,3091.3,0.002]
[1765719168923,5.21755557,3091.4,3091.3,0.002]
[1765719169323,4.91938532,3091.4,3091.3,0.002]
[1765719169527,5.71463055,3091.4,3091.3,0.002]
[1765719169722,6.12013455,3091.4,3091.3,0.002]
[1765719170624,3.64070296,3091.0,3090.9,0.002]
[1765719170830,0.2084,3090.8,3090.3,0.002]
[1765719171029,0.50644523,3090.8,3090.3,0.002]
[1765719171230,1.00364523,3090.8,3090.3,0.002]
[1765719171427,0.2362,3090.4,3090.3,0.002]
[1765719171832,0.7334,3090.4,3090.3,0.002]
[1765719172664,0.512,3090.5,3090.3,0.002]
[1765719172665,3.74779452,3090.5,3090.3,0.9398]
[1765719172956,3.23457109,3091.6,3090.4,1.51827529]
[1765719173258,6.46914218,3091.6,3091.3,0.1495]
[1765719173430,3.23457109,3091.6,3091.5,0.4804]
[1765719173825,3.23457109,3091.6,3091.5,0.9378]
[1765719174037,1.55179072,3092.1,3091.5,0.9378]
[1765719174038,6.4683053,3092.0,3091.5,0.9378]
[1765719174255,10.67269752,3092.0,3091.3,0.1495]
[1765719174632,10.67269752,3092.0,3091.4,0.4574]
[1765719175259,0.6209035,3091.9,3091.4,0.4574]
[1765719175562,0.58047529,3091.9,3091.4,0.4574]
[1765719175938,0.87826534,3091.9,3091.4,0.4594]
[1765719176143,1.47851155,3091.8,3091.4,0.4594]
[1765719176751,1.47851155,3091.8,3091.7,0.4939]
[1765719177143,1.47851155,3091.8,3091.7,0.9564]
[1765719177736,5.2933487,3091.8,3091.7,0.9564]
[1765719178967,5.2933487,3091.8,3091.7,0.4939]
[1765719179851,5.2933487,3091.8,3091.4,0.4645]
[1765719179852,11.76207242,3091.8,3091.4,0.4645]
[1765719181081,0.04043083,3091.7,3091.4,0.4645]
[1765719181271,0.4975,3091.5,3091.4,0.002]
[1765719181869,4.44957572,3091.5,3091.4,0.002]
[1765719182034,4.49238508,3091.5,3091.4,0.002]
[1765719184276,4.74728508,3091.5,3091.4,0.002]
[1765719184473,5.7916313,3091.5,3091.4,0.002]
[1765719186121,5.5367313,3091.5,3091.4,0.002]
[1765719188686,5.0392313,3091.5,3091.4,0.002]
[1765719188884,5.0392313,3091.5,3091.4,0.9584]
[1765719189215,3.23467572,3091.5,3091.4,0.9584]
[1765719190817,0.58047529,3091.6,3091.4,0.9584]
[1765719191119,0.001,3091.5,3091.4,0.002]
[1765719191623,0.001,3091.5,3091.4,0.4959]
[1765719192109,0.001,3091.5,3091.4,0.9584]
[1765719192725,0.001,3091.5,3091.4,0.4959]
[1765719192892,0.001,3091.5,3091.4,0.002]
[1765719192893,4.2049089,3091.5,3091.4,0.002]
[1765719193092,3.9460089,3091.5,3091.4,0.9584]
[1765719193827,3.53452027,3091.5,3091.4,0.9584]
[1765719195092,4.32495371,3091.5,3091.4,0.002]
[1765719195317,4.28452027,3091.5,3091.4,0.002]
[1765719195824,3.79342027,3091.5,3091.4,0.002]
[1765719196021,4.37389556,3091.5,3091.4,0.002]
[1765719196222,5.19278929,3091.5,3091.4,0.002]
[1765719198633,4.93388929,3091.5,3091.4,0.002]
[1765719198834,4.93388929,3091.5,3091.4,0.4959]
[1765719199227,4.11499556,3091.5,3091.4,0.4959]
[1765719199422,4.11499556,3091.5,3091.4,0.9584]
[1765719199822,4.11499556,3091.5,3091.4,0.002]
[1765719200148,4.905429,3091.5,3091.4,0.002]
[1765719201157,5.823933,3091.5,3091.4,0.002]
[1765719201322,6.68934951,3091.5,3091.4,0.002]
[1765719202349,6.68934951,3091.5,3090.6,0.002]
[1765719202350,0.98597929,3091.4,3090.6,0.002]
[1765719202548,0.29884455,3091.3,3090.6,0.002]
[1765719202850,0.29884455,3091.2,3090.6,0.4645]
[1765719203029,0.29884455,3091.1,3090.6,0.4645]
[1765719203226,6.47060726,3090.9,3090.6,0.4645]
[1765719203430,0.29884455,3090.8,3090.6,0.4645]
[1765719203751,0.29884455,3090.7,3090.6,0.4645]
[1765719204241,0.29884455,3090.7,3090.6,0.9584]
[1765719205160,4.21130272,3090.7,3090.6,0.002]
[1765719205336,4.96130272,3090.7,3090.6,0.002]
[1765719205654,5.54177801,3090.7,3090.6,0.002]
[1765719208258,5.58222192,3090.7,3090.6,0.002]
[1765719208636,0.58537529,3090.6,3090.3,0.002]
[1765719208859,0.4706,3090.4,3090.3,0.002]
[1765719209060,0.76944455,3090.4,3090.3,0.002]
[1765719209376,0.2815,3090.2,3089.8,0.4672]
[1765719209660,0.2815,3090.2,3089.5,0.4692]
[1765719209661,0.29884455,3090.1,3089.5,0.4692]
[1765719209864,0.2815,3090.2,3089.5,0.4692]
[1765719209865,0.29884455,3090.0,3089.5,0.4692]
[1765719210064,0.29884455,3089.9,3089.5,0.4692]
[1765719210259,0.58047529,3090.3,3089.5,0.4692]
[1765719210260,0.29884455,3090.2,3089.5,0.4692]
[1765719210470,0.29884455,3090.1,3089.5,0.4692]
[1765719210759,0.29884455,3090.0,3089.5,0.4692]
[1765719210954,0.29884455,3089.9,3089.5,0.4692]
[1765719211134,0.29884455,3090.2,3089.5,0.4692]
[1765719211337,0.29884455,3090.1,3089.5,0.4692]
[1765719211536,0.58047529,3089.8,3089.5,0.4692]
[1765719211736,0.2962,3089.6,3089.5,0.002]
[1765719211952,0.76874455,3089.6,3089.5,0.002]
[1765719213355,0.59504455,3089.6,3089.5,0.002]
[1765719213952,4.41218478,3089.6,3089.5,0.002]
[1765719214857,1.44627929,3089.5,3089.4,1e-08]
[1765719215088,1.42343359,3089.5,3089.4,0.46720001]
[1765719215293,1.34991984,3089.5,3089.4,1e-08]
[1765719215660,0.87931984,3089.5,3089.4,0.45730001]
[1765719216602,4.11608954,3089.5,3089.4,0.45730001]
[1765719216997,3.53561425,3089.5,3089.4,0.45730001]
[1765719217174,3.2367697,3089.5,3089.4,0.92450001]
[1765719217371,3.2367697,3089.5,3089.4,0.45730001]
[1765719217580,3.2367697,3089.5,3089.4,0.92450001]